[Event "ISR-ch Youth 2019"]
[Site "Jerusalem"]
[Date "2019.04.11"]
[Round "1.3"]
[White "Rozen, Eytan"]
[Black "Rivlin, Shachar"]
[Result "1-0"]
[ECO "E60"]
[WhiteElo "2309"]
[BlackElo "1852"]
[Annotator "NA"]
[PlyCount "105"]
[EventDate "2019.04.11"]
[EventType "swiss"]
[EventCountry "ISR"]
[SourceTitle "playchess.com"]
[Source "ChessBase"]
[SourceQuality "1"]
[TimeControl "5400+30"]

{[%evp 8,105,33,21,29,45,38,18,32767,32767,32767,32767,32767,32767,32767,32767,32767,32767,32767,32767,32767,32767,32767,66,72,32767,54,32767,32767,74,224,227,206,191,226,216,206,197,231,32767,273,258,275,182,193,181,190,102,189,196,32767,32767,32767,32767,32767,32767,32767,160,179,124,127,128,171,175,220,193,223,198,230,195,216,196,32767,32767,32767,32767,32767,32767,32767,32767,32767,32767,32767,32767,32767,331,352,352,490,404,397,342,863,869,2504,32767,29987,29988,29991,29992]} 1. c4 {[%emt 0:00:00]} Nf6 {[%emt 0:00:00]} 2. Nf3 {[%emt 0:00:02]} g6 {[%emt 0:00:09]} 3. g3 {[%emt 0:00:02]} Bg7 {[%emt 0:05:43]} 4. Bg2 {[%emt 0:00:03]} d6 {[%emt 0:00:45]} 5. d4 {[%emt 0:00:19]} c6 {[%emt 0:00:53] LiveBook: 134 Games} 6. O-O {[%emt 0:00:05]} O-O {[%emt 0:00:09]} 7. b3 {[%emt 0:00:28]} Ne4 {[%emt 0:09:47] E60: King's Indian: Unusual lines and Fianchetto Variation without Nc3} (7... e5 8. dxe5 dxe5 9. Bb2 e4 10. Qxd8 Rxd8 11. Ng5 Bf5 12. Nc3 h6 13. Ncxe4 Nxe4 14. Bxg7 hxg5 15. Be5 Nd7 {½-½ (67) Nepomniachtchi,I (2729)-Caruana,F (2799) London 2017}) 8. Bb2 {[%emt 0:00:07]} Na6 {[%emt 0:08:54]} 9. Nfd2 $146 {[%emt 0:01:05]} ({Predecessor:} 9. Nc3 Nxc3 10. Bxc3 d5 11. cxd5 cxd5 12. Rc1 Nc7 13. Ne5 Nb5 14. Bb2 Be6 15. Rc5 a6 16. a4 {½-½ (41) Ravikumar,V (2350)-Cornelisse,J (2187) Guernsey 2007}) 9... Nxd2 {[%emt 0:00:35]} 10. Qxd2 {[%emt 0:00:13]} e5 {[%emt 0:07:11]} 11. Rd1 {[%emt 0:03:21]} Be6 {[%emt 0:05:36]} 12. Na3 {[%emt 0:03:00]} Qb6 {[%emt 0:06:28]} 13. d5 {[%emt 0:03:24]} cxd5 {[%emt 0:02:08]} 14. cxd5 {[%emt 0:00:57]} Bc8 {[%emt 0:10:52]} 15. Rac1 {[%emt 0:05:29]} Qd8 {[%emt 0:07:01]} 16. Rc2 {[%emt 0:07:48]} Qe7 {[%emt 0:02:36]} 17. Rdc1 {[%emt 0:04:50]} Bd7 {[%emt 0:03:14]} 18. Nc4 {[%emt 0:01:19]} Rfc8 $2 {[%emt 0:02:23] [#]} (18... f5 $14) 19. Ba3 $1 {[%emt 0:00:25]} Qd8 {[%emt 0:04:27]} 20. Nxd6 {[%emt 0:00:26]} Rxc2 {[%emt 0:00:22]} 21. Rxc2 {[%emt 0:00:28]} Rb8 {[%emt 0:03:05]} 22. Nc4 {[%emt 0:02:42]} b5 {[%emt 0:01:04]} 23. Ne3 {[%emt 0:00:21]} Bf8 {[%emt 0:02:36]} 24. d6 {[%emt 0:05:06]} Be6 {[%emt 0:02:48]} 25. Rc6 {[%emt 0:01:19]} Rb6 {[%emt 0:01:27]} 26. Nd5 {[%emt 0:17:44]} Bxd5 {[%emt 0:03:12]} (26... Rxc6 $2 {is the wrong capture.} 27. Ne7+ {[%mdl 64] Discovered Attack} Kg7 28. Nxc6 $18) 27. Qxd5 {[%emt 0:04:25]} ({Don't take} 27. Bxd5 $6 Rxc6 28. Bxc6 b4 $16) (27. Rxb6 $18 axb6 28. Qxd5 {[%mdl 64] Double Attack}) 27... b4 {[%emt 0:00:46]} (27... Rxc6 $16 {was worth a try.} 28. Qxc6 b4) 28. Rxb6 {[%emt 0:02:52]} axb6 {[%emt 0:00:36]} 29. Bb2 {[%emt 0:00:35]} Qxd6 {[%emt 0:00:36]} 30. Bxe5 {[%emt 0:00:24]} Qe7 {[%emt 0:06:33]} 31. Bb2 {[%emt 0:03:12]} Qc5 {[%emt 0:02:13]} 32. Qd7 {[%emt 0:04:17]} Qd6 {[%emt 0:00:54]} 33. Qc8 {[%emt 0:01:22]} Nc5 {[%emt 0:00:30]} 34. Qc6 {[%emt 0:02:20]} Qxc6 {[%emt 0:00:30]} 35. Bxc6 {[%emt 0:00:02]} Bd6 {[%emt 0:00:46]} 36. f4 {[%emt 0:00:36]} f5 {[%emt 0:00:24]} 37. Kf2 {[%emt 0:01:20]} Kf7 {[%emt 0:00:37]} 38. Bd5+ {[%emt 0:01:10]} Ke7 {[%emt 0:00:16]} 39. Ke3 {[%emt 0:00:52]} Nd7 {[%emt 0:00:25]} 40. Kf3 {[%emt 0:01:21]} Bc5 {[%emt 0:00:51]} 41. e4 {[%emt 0:00:42]} fxe4+ {[%emt 0:00:22]} 42. Bxe4 {[%emt 0:00:27]} Ke6 {[%emt 0:00:35]} 43. g4 {[%emt 0:00:46]} Bd6 {[%emt 0:00:36]} 44. Bd3 {[%emt 0:03:01]} Nc5 {[%emt 0:00:30]} 45. Bc4+ {[%emt 0:00:12]} Ke7 {[%emt 0:00:12]} 46. h4 {[%emt 0:01:56]} Nd7 {[%emt 0:00:46]} 47. g5 {[%emt 0:00:59]} Nc5 {[%emt 0:00:27]} (47... Kf8 $142 48. Kg4 Bc7) 48. Bd4 {[%emt 0:02:33]} Kf8 {[%emt 0:00:34]} 49. h5 {[%emt 0:03:20]} Nd7 $2 {[%emt 0:00:33]} (49... gxh5 50. f5 Nd7) 50. h6 {[%emt 0:00:12]} Nc5 {[%emt 0:00:27]} 51. f5 {[%emt 0:00:47]} gxf5 {[%emt 0:00:10] [#]} 52. g6 $1 {[%emt 0:00:07]} hxg6 {[%emt 0:00:51]} 53. h7 {[%emt 0:00:15]} 1-0

[Event "ISR-ch Youth 2019"]
[Site "Jerusalem"]
[Date "2019.04.11"]
[Round "1.6"]
[White "Vagman, Roy"]
[Black "Leib, Yoni"]
[Result "1-0"]
[ECO "C45"]
[WhiteElo "1959"]
[BlackElo "1460"]
[Annotator "NA RC"]
[PlyCount "49"]
[EventDate "2019.04.11"]
[EventType "swiss"]
[EventCountry "ISR"]
[SourceTitle "playchess.com"]
[Source "ChessBase"]
[SourceQuality "1"]
[TimeControl "5400+30"]

{[%evp 10,49,39,-20,19,32767,32767,32767,32767,32767,32767,32767,32767,32767,32767,32767,32767,-92,0,-15,112,102,179,118,293,305,389,402,377,397,32767,32767,339,407,32767,447,32767,605,966,591,1539,5428]} 1. e4 {[%emt 0:00:00]} e5 {[%emt 0:00:00]} 2. Nf3 {[%emt 0:00:00]} Nc6 {[%emt 0:00:00]} 3. d4 {[%emt 0:01:15]} exd4 {[%emt 0:00:28]} 4. Nxd4 {[%emt 0:00:48]} Bc5 {[%emt 0:00:14]} 5. Be3 {[%emt 0:02:11]} Bb6 {[%emt 0:00:28] LiveBook: 65 Games} 6. c3 {[%emt 0:01:40]} (6. Nc3 $14) 6... d6 {[%emt 0:02:36]} 7. Bc4 {[%emt 0:02:34] C45: Scotch Game} (7. Bb5 Bd7 8. O-O Nf6 9. f3 O-O 10. Bxc6 bxc6 11. Nd2 Re8 12. Re1 h6 13. Bf2 c5 14. Nc2 c6 {1-0 (37) Kiriella,K (1331)-Madushanka,H (1777) Ambalangoda 2018}) 7... h6 {[%emt 0:04:25]} 8. O-O $146 {[%emt 0:05:24]} ({Predecessor:} 8. a4 Nf6 9. Qc2 O-O 10. O-O Qe7 11. f3 Be6 12. Bb5 Nxd4 13. cxd4 c6 14. Bd3 Rac8 {0-1 (34) Milosavljevic,R (1659)-Lukic,S (1322) Paracin 2018}) 8... Nf6 {[%emt 0:00:46]} 9. Re1 {[%emt 0:05:15]} O-O {[%emt 0:01:58]} 10. Qc2 {[%emt 0:05:15]} Re8 {[%emt 0:03:23]} 11. Nd2 {[%emt 0:08:34]} Ne5 {[%emt 0:06:58]} 12. Bb3 {[%emt 0:02:25]} d5 {[%emt 0:09:42]} 13. h3 {[%emt 0:11:01]} (13. Bf4 $14 {keeps the upper hand.}) 13... dxe4 {[%emt 0:07:36]} (13... c5 $17 14. N4f3 Nxf3+ 15. Nxf3 Rxe4) 14. Nxe4 {[%emt 0:01:02]} Nxe4 {[%emt 0:10:57]} (14... c5 $11 {keeps the balance.} 15. Nb5 Bf5) 15. Qxe4 {[%emt 0:00:13]} Ng4 {[%emt 0:05:27]} (15... c5 $16 {might work better.}) 16. Qg6 {[%emt 0:02:20]} Ne5 $2 {[%emt 0:02:13]} (16... Qf6 $16 17. Qxf6 Nxf6) 17. Qg3 {[%emt 0:00:06]} Kf8 {[%emt 0:08:44] [#]} 18. Bxh6 $1 {[%emt 0:01:11]} gxh6 {[%emt 0:01:04]} 19. Rxe5 {[%emt 0:00:13]} Bxd4 {[%emt 0:01:31]} 20. Rxe8+ {[%emt 0:00:49]} Qxe8 {[%emt 0:02:18]} 21. cxd4 {[%emt 0:00:28]} Qe7 {[%emt 0:01:57]} 22. Rc1 {[%emt 0:01:20]} c6 {[%emt 0:00:34]} 23. Rc3 {[%emt 0:02:47]} Bf5 {[%emt 0:03:51]} 24. Rf3 {[%emt 0:01:30]} Be6 {[%emt 0:01:37]} 25. Qe5 $18 {[%emt 0:00:11]} 1-0

[Event "ISR-ch Youth 2019"]
[Site "Jerusalem"]
[Date "2019.04.11"]
[Round "1.8"]
[White "Azoulay, Yehonatan"]
[Black "Fester, Ilay"]
[Result "1-0"]
[ECO "C02"]
[WhiteElo "1491"]
[BlackElo "1195"]
[Annotator "NA"]
[PlyCount "99"]
[EventDate "2019.04.11"]
[EventType "swiss"]
[EventCountry "ISR"]
[SourceTitle "playchess.com"]
[Source "ChessBase"]
[SourceQuality "1"]
[TimeControl "5400+30"]

1. e4 {[%emt 0:00:00]} e6 {[%emt 0:00:00]} 2. d4 {[%emt 0:00:00]} d5 {[%emt 0:00:00]} 3. e5 {[%emt 0:00:00]} c5 {[%emt 0:00:00]} 4. c3 {[%emt 0:00:00]} Qb6 {[%emt 0:00:03]} 5. Nf3 {[%emt 0:00:16]} Bd7 {[%emt 0:00:12]} 6. Qc2 {[%emt 0:00:28]} Bb5 {[%emt 0:00:35]} 7. Bxb5+ {[%emt 0:00:42]} Qxb5 {[%emt 0:00:11]} 8. Na3 {[%emt 0:00:30]} Qb6 {[%emt 0:01:40]} 9. O-O {[%emt 0:00:12]} Nc6 {[%emt 0:00:24]} 10. Be3 {[%emt 0:00:21]} cxd4 {[%emt 0:01:32]} 11. Nxd4 {[%emt 0:00:11]} Qc7 {[%emt 0:02:58]} 12. Nab5 {[%emt 0:00:21]} Qd7 {[%emt 0:02:42]} 13. Qa4 {[%emt 0:01:58]} Nxd4 {[%emt 0:02:34]} 14. Nc7+ {[%emt 0:01:02]} Kd8 {[%emt 0:01:08]} 15. Qxd7+ {[%emt 0:00:06]} Kxd7 {[%emt 0:00:10]} 16. Nxa8 {[%emt 0:00:04]} Nc2 {[%emt 0:00:40]} 17. Rac1 {[%emt 0:00:04]} Nxe3 {[%emt 0:00:13]} 18. fxe3 {[%emt 0:00:04]} Bc5 {[%emt 0:00:52]} 19. Rxf7+ {[%emt 0:00:51]} Ne7 {[%emt 0:02:39]} 20. Re1 {[%emt 0:00:34]} Rxa8 {[%emt 0:00:34]} 21. b4 {[%emt 0:00:48]} Bb6 {[%emt 0:00:27]} 22. Rxg7 {[%emt 0:00:39]} Rf8 {[%emt 0:04:53]} 23. a4 {[%emt 0:01:16]} a6 {[%emt 0:02:25]} 24. h3 {[%emt 0:02:31]} Rf5 {[%emt 0:04:13]} 25. Rxh7 {[%emt 0:00:56]} Rxe5 {[%emt 0:00:24]} 26. Kf2 {[%emt 0:00:38]} a5 {[%emt 0:11:18]} 27. g4 {[%emt 0:00:57]} Bd8 {[%emt 0:04:26]} 28. Rb1 {[%emt 0:01:47]} Bb6 {[%emt 0:01:14]} 29. bxa5 {[%emt 0:00:12]} Bxe3+ {[%emt 0:02:00]} 30. Kf3 {[%emt 0:01:24]} Bc5 {[%emt 0:00:36]} 31. Rxb7+ {[%emt 0:01:02]} Kc6 {[%emt 0:00:27]} 32. Rbxe7 {[%emt 0:01:13]} Re3+ {[%emt 0:01:10]} 33. Kf4 {[%emt 0:00:29]} Rxc3 {[%emt 0:00:32]} 34. Rxe6+ {[%emt 0:00:12]} Bd6+ {[%emt 0:00:27]} 35. Rxd6+ {[%emt 0:01:09]} Kxd6 {[%emt 0:00:26]} 36. g5 {[%emt 0:00:42]} d4 {[%emt 0:00:27]} 37. g6 {[%emt 0:00:17]} Ke6 {[%emt 0:00:58]} 38. a6 {[%emt 0:00:40]} d3 {[%emt 0:00:59]} 39. Ke3 {[%emt 0:00:29]} Ra3 {[%emt 0:00:20]} 40. g7 {[%emt 0:00:29]} Kf7 {[%emt 0:00:31]} 41. a7 {[%emt 0:00:20]} Rxa4 {[%emt 0:00:39]} 42. Rh8 {[%emt 0:00:58]} Kxg7 {[%emt 0:01:50]} 43. a8=Q {[%emt 0:00:14]} Rxa8 {[%emt 0:00:24]} 44. Rxa8 {[%emt 0:00:08]} Kg6 {[%emt 0:00:20]} 45. Kxd3 {[%emt 0:00:10]} Kg5 {[%emt 0:00:10]} 46. Ke3 {[%emt 0:00:10]} Kh4 {[%emt 0:00:36]} 47. Kf4 {[%emt 0:00:15]} Kxh3 {[%emt 0:00:17]} 48. Rg8 {[%emt 0:00:12]} Kh2 {[%emt 0:00:37]} 49. Kf3 {[%emt 0:00:05]} Kh3 {[%emt 0:00:21]} 50. Rh8# {[%emt 0:00:14]} 1-0

[Event "ISR-ch Youth 2019"]
[Site "Jerusalem"]
[Date "2019.04.11"]
[Round "1.9"]
[White "Levitan, Ronit"]
[Black "Vetshtein, Lior"]
[Result "1-0"]
[ECO "C07"]
[WhiteElo "2032"]
[BlackElo "1622"]
[Annotator "NA RC"]
[PlyCount "145"]
[EventDate "2019.04.11"]
[EventType "swiss"]
[EventCountry "ISR"]
[SourceTitle "playchess.com"]
[Source "ChessBase"]
[SourceQuality "1"]
[TimeControl "5400+30"]

{[%evp 23,145,-14,0,32767,32767,32767,32767,32767,32767,32767,32767,-93,-16,32767,-27,32767,-5,-104,-108,-340,32767,32767,32767,32767,32767,32767,-348,-356,-227,-225,-241,-239,-243,-260,-267,-310,-296,-396,-386,-379,-410,-413,32767,32767,32767,32767,32767,32767,32767,32767,91,32767,77,87,86,32,132,0,0,0,0,-8,32767,32767,32767,87,32767,32767,32767,32767,32767,32767,32767,32767,272,113,128,109,358,127,294,347,314,443,363,118,970,1368,1035,1237,1500,1282,6083,1526,1454,1335,1360,924,1495,1512,1578,2342,1469,1807,2167,4436,5081,1734,1455,1632,6079,29964,5273,29974,1679,1627,29991,29992,29992,29993,29994,29989,29989,29990]} 1. e4 {[%emt 0:00:00]} e6 {[%emt 0:00:00]} 2. d4 {[%emt 0:00:00]} d5 {[%emt 0:00:00]} 3. Nd2 {[%emt 0:00:00]} c5 {[%emt 0:00:00]} 4. exd5 {[%emt 0:00:00]} Qxd5 {[%emt 0:00:00]} 5. Ngf3 {[%emt 0:00:07]} cxd4 {[%emt 0:00:05]} 6. Bc4 {[%emt 0:00:12]} Qd6 {[%emt 0:00:09]} 7. O-O {[%emt 0:00:11]} Nf6 {[%emt 0:00:08]} 8. Nb3 {[%emt 0:00:14]} Nc6 {[%emt 0:00:07]} 9. Nbxd4 {[%emt 0:00:41]} Nxd4 {[%emt 0:00:11]} 10. Qxd4 {[%emt 0:00:13]} Qxd4 {[%emt 0:00:17]} 11. Nxd4 {[%emt 0:00:20]} Bc5 {[%emt 0:01:55] C07: French Tarrasch: 3...c5, 4 Ngf3 and 4 exd5 Qxd5} (11... Bd7 12. Be2 Bc5 13. Rd1 Rc8 14. c4 O-O 15. Be3 e5 16. Nc2 Bf5 17. Bxc5 Rxc5 18. Ne3 Be6 19. b4 Rc7 20. c5 Ne4 21. Rac1 Rfc8 22. Bf3 Nf6 23. Bd5 Nxd5 24. Nxd5 Bxd5 25. Rxd5 f6 26. Rcd1 {½-½ (26) Anand,V (2786)-So,W (2812) Stavanger 2017}) 12. Nb5 {[%emt 0:04:21]} Ke7 {[%emt 0:00:56]} 13. Bf4 {[%emt 0:04:56]} Bd7 {[%emt 0:03:57]} 14. Rad1 {[%emt 0:02:29]} Bc6 $146 {[%emt 0:03:24]} ({Predecessor:} 14... Rac8 15. Nd6 Rc6 16. Nxb7 Bxf2+ 17. Rxf2 Rxc4 18. Bd6+ Ke8 19. Ba3 {½-½ (71) Probst,A (1925)-Weise,M (2171) Bad Homburg 2014}) 15. Nd4 {[%emt 0:04:07]} Be4 {[%emt 0:03:32]} 16. Rfe1 {[%emt 0:17:41]} Rhd8 {[%emt 0:04:44]} 17. Nb3 {[%emt 0:21:10]} (17. Be5 $11 {remains equal.}) 17... Bb6 {[%emt 0:02:00]} ({Black should try} 17... Rxd1 $17 18. Rxd1 Bxc2) 18. Bd2 {[%emt 0:10:13]} a6 {[%emt 0:07:07]} 19. Bb4+ {[%emt 0:06:43]} Ke8 {[%emt 0:00:25]} 20. Nd2 {[%emt 0:02:57]} (20. c3 $11 {keeps the balance.}) 20... Bxc2 {[%emt 0:05:20]} 21. Bxe6 $2 {[%emt 0:08:15]} (21. Rc1 $17 Ng4 22. Re2) 21... fxe6 {[%emt 0:01:03]} 22. Rxe6+ {[%emt 0:00:07]} Kf7 {[%emt 0:00:09]} 23. Re7+ {[%emt 0:05:26]} Kg6 {[%emt 0:00:52]} 24. Rc1 {[%emt 0:00:39]} Rac8 {[%emt 0:05:25]} 25. Rxb7 {[%emt 0:03:32]} Be4 {[%emt 0:05:46]} 26. Rxc8 {[%emt 0:02:54]} Bxb7 {[%emt 0:03:53]} 27. Rxd8 {[%emt 0:02:00]} Bxd8 {[%emt 0:00:09]} 28. f3 {[%emt 0:00:05]} Bb6+ {[%emt 0:03:07]} 29. Kf1 {[%emt 0:00:07]} Nd5 {[%emt 0:01:03]} 30. Bd6 {[%emt 0:01:00]} Ne3+ {[%emt 0:03:24]} 31. Ke2 {[%emt 0:00:11]} Nxg2 {[%emt 0:02:13]} 32. Nc4 {[%emt 0:00:40]} Bd4 {[%emt 0:01:09]} 33. b3 {[%emt 0:00:24]} Nh4 {[%emt 0:03:08]} 34. Nd2 {[%emt 0:00:42]} Nf5 {[%emt 0:02:07]} 35. Bc7 {[%emt 0:01:13]} Bc6 {[%emt 0:04:34]} 36. Nc4 {[%emt 0:00:20]} Bc5 $2 {[%emt 0:02:33]} ({Black should play} 36... Kg5 $19 37. Ne5 Bb7 38. Nf7+ Kf6) 37. Ne5+ {[%emt 0:00:26]} Kf6 {[%emt 0:01:45]} 38. Nxc6 {[%emt 0:00:15]} Ke6 {[%emt 0:00:54]} 39. b4 {[%emt 0:03:18]} Bg1 {[%emt 0:03:07] [#]} (39... Kd5 $14 40. Nb8 Nd4+ 41. Kd3 Bxb4) 40. Na5 {[%emt 0:00:35]} (40. Nb8 $1 $16) 40... Nd4+ {[%emt 0:01:41]} 41. Kf1 {[%emt 0:00:23]} Be3 {[%emt 0:00:17]} 42. Bb6 {[%emt 0:01:03]} Nc2 {[%emt 0:00:57]} 43. Bxe3 {[%emt 0:00:05]} Nxe3+ {[%emt 0:00:10]} 44. Ke2 {[%emt 0:00:40]} Nc2 {[%emt 0:00:33]} 45. Nc6 {[%emt 0:00:51]} Kd5 {[%emt 0:03:00]} 46. Kd2 {[%emt 0:00:38]} Na3 {[%emt 0:02:29]} 47. Nb8 {[%emt 0:00:32]} Nc4+ {[%emt 0:00:58]} 48. Kc3 {[%emt 0:00:14]} a5 {[%emt 0:01:15] [#]} 49. Na6 {[%emt 0:00:10]} (49. Nc6 $1 $18 {[%cal Rc6e7][%mdl 512] has better winning chances.} Nd6 (49... Kxc6 50. Kxc4) 50. Nxa5) 49... Ne5 {[%emt 0:03:34] [#]} 50. f4 $1 {[%emt 0:00:03]} Nc6 $2 {[%emt 0:01:21]} (50... Ng4 $16 {might work better.}) 51. b5 $2 {[%emt 0:00:29]} (51. Nc7+ $18 {is the precise move to win.} Kd6 52. Ne8+ Kd5 53. bxa5 (53. Nxg7 Nxb4 54. a3 Na6 $16)) 51... Na7 $2 {[%emt 0:00:51]} (51... Nd4 $16 {was called for.}) 52. a4 {[%emt 0:00:30]} Nc8 {[%emt 0:00:53]} 53. Nc7+ {[%emt 0:00:27]} Ke4 {[%emt 0:01:03] [#]} 54. Na8 $2 {[%emt 0:01:32]} (54. Kc4 $1 $18 {is the precise move to win.}) 54... Kxf4 $2 {[%emt 0:03:15]} (54... Kd5 $16) 55. b6 {[%emt 0:00:04]} Nd6 {[%emt 0:00:12]} 56. Kd4 {[%emt 0:00:05]} g5 {[%emt 0:01:15]} 57. Kd5 {[%emt 0:00:07]} Nb7 {[%emt 0:00:10]} 58. Kc6 {[%emt 0:00:08]} (58. Nc7 $142 Ke3 59. Ne6) 58... Nd8+ {[%emt 0:00:23]} 59. Kc7 {[%emt 0:00:25]} Ne6+ {[%emt 0:00:35]} 60. Kd7 {[%emt 0:00:23]} ({Not} 60. Kc8 Nc5 $16) 60... Nc5+ {[%emt 0:00:29]} 61. Kc6 {[%emt 0:00:08]} Na6 {[%emt 0:01:16]} 62. b7 {[%emt 0:01:20]} Kf3 {[%emt 0:01:07]} 63. Kb6 {[%emt 0:00:05]} Nb8 {[%emt 0:00:07]} 64. Nc7 {[%emt 0:00:20]} Nd7+ {[%emt 0:01:35]} 65. Kc6 {[%emt 0:00:04]} (65. Kxa5 $142 Kg2 66. Kb5 Kxh2 67. a5) 65... Nb8+ {[%emt 0:00:21]} 66. Kb5 {[%emt 0:00:29]} Nd7 {[%emt 0:02:37]} 67. Na6 {[%emt 0:00:08]} Kg2 {[%emt 0:02:09]} 68. Kc6 {[%emt 0:00:05]} Ne5+ {[%emt 0:02:22]} 69. Kd6 {[%emt 0:00:10]} (69. Kd5 $142 Ng6 70. b8=Q) 69... Kxh2 {[%emt 0:04:27]} 70. Kxe5 {[%emt 0:00:25]} g4 {[%emt 0:00:10]} 71. b8=Q {[%emt 0:00:05]} g3 {[%emt 0:00:15]} 72. Qh8 {[%emt 0:00:19]} g2 {[%emt 0:00:40]} 73. Qxh7+ {[%emt 0:00:06]} 1-0

[Event "ISR-ch Youth 2019"]
[Site "Jerusalem"]
[Date "2019.04.11"]
[Round "2.1"]
[White "Tzidkiya, Yeshaayahu"]
[Black "Lukin, Elisha"]
[Result "1-0"]
[ECO "C01"]
[WhiteElo "2188"]
[BlackElo "2287"]
[Annotator "NA"]
[PlyCount "77"]
[EventDate "2019.04.11"]
[EventType "swiss"]
[EventCountry "ISR"]
[SourceTitle "playchess.com"]
[Source "ChessBase"]
[SourceQuality "1"]
[TimeControl "5400+30"]

1. e4 {[%emt 0:00:00]} e6 {[%emt 0:05:06]} 2. d4 {[%emt 0:00:00]} d5 {[%emt 0:00:08]} 3. exd5 {[%emt 0:00:47]} exd5 {[%emt 0:00:07]} 4. Nf3 {[%emt 0:00:05]} Nc6 {[%emt 0:00:03]} 5. Bb5 {[%emt 0:01:37]} Bd6 {[%emt 0:01:26]} 6. c4 {[%emt 0:01:00]} dxc4 {[%emt 0:00:36]} 7. d5 {[%emt 0:00:42]} a6 {[%emt 0:00:07]} 8. Ba4 {[%emt 0:00:03]} b5 {[%emt 0:00:05]} 9. dxc6 {[%emt 0:00:06]} bxa4 {[%emt 0:00:05]} 10. O-O {[%emt 0:00:30] C01: French: Exchange Variation} Ne7 {[%emt 0:00:09]} 11. Nbd2 {[%emt 0:00:26]} (11. Qxa4 O-O 12. Nbd2 Rb8 13. a3 c3 14. bxc3 Qe8 15. Nd4 Bb7 16. Re1 Bxc6 17. Qxa6 Ba8 18. Ne4 Be5 19. Qd3 Qd7 20. Ng5 {1-0 (32) Gelfand,B (2673)-Alekseev,E (2639) St Petersburg 2018}) 11... O-O {[%emt 0:04:10]} 12. Nxc4 {[%emt 0:02:50]} Bg4 {[%emt 0:02:14]} 13. Nxd6 $146 {[%emt 0:09:15]} ({Predecessor:} 13. h3 Bh5 14. Nxd6 Qxd6 15. Qxd6 cxd6 16. Nd4 Rfc8 17. Be3 Nxc6 {½-½ (28) Flitsch,G (2278)-Sienkiewicz,W (2205) ICCF email 2016}) 13... cxd6 {[%emt 0:00:14]} 14. Bg5 {[%emt 0:00:56]} h6 {[%emt 0:03:52]} 15. Bxe7 {[%emt 0:05:19]} Qxe7 {[%emt 0:01:57]} 16. Qd3 {[%emt 0:27:56]} Rab8 {[%emt 0:02:54]} 17. b3 {[%emt 0:16:31]} Rfc8 {[%emt 0:05:17]} (17... Bxf3 $11 {keeps the balance.} 18. Qxf3 Qc7) 18. Nd4 {[%emt 0:02:10]} Qa7 {[%emt 0:07:03]} 19. Rac1 {[%emt 0:10:51]} ({Stronger than} 19. bxa4 Rb4 $11 {[%mdl 64] Double Attack}) (19. h3 $18 {has better winning chances.} Bh5 20. Rfc1) 19... axb3 {[%emt 0:19:12]} 20. axb3 {[%emt 0:00:06]} Rb4 {[%emt 0:02:15]} 21. Nf5 {[%emt 0:12:57]} Bxf5 {[%emt 0:08:43]} 22. Qxf5 {[%emt 0:00:05]} Qb8 {[%emt 0:08:52]} 23. Rfe1 {[%emt 0:01:29]} Rb5 {[%emt 0:01:21]} 24. Qd7 {[%emt 0:04:11]} Kh7 {[%emt 0:12:46]} 25. c7 {[%emt 0:00:57]} Qa8 {[%emt 0:01:29]} 26. Qxf7 {[%emt 0:01:15]} Qd5 {[%emt 0:01:41]} 27. Qd7 {[%emt 0:00:34]} Qf5 {[%emt 0:01:16]} 28. Re7 {[%emt 0:00:40]} Qxd7 {[%emt 0:00:42]} 29. Rxd7 {[%emt 0:00:03]} Rxb3 {[%emt 0:01:45]} 30. Kf1 {[%emt 0:00:04]} Rb7 {[%emt 0:00:55]} 31. f4 {[%emt 0:01:15]} a5 {[%emt 0:02:31]} 32. f5 {[%emt 0:00:26]} Rb5 {[%emt 0:01:23]} 33. Rd8 $18 {[%emt 0:00:22]} Rxf5+ {[%emt 0:00:31]} 34. Ke2 {[%emt 0:00:48]} Re5+ {[%emt 0:00:17]} 35. Kf3 {[%emt 0:00:24]} Rf5+ {[%emt 0:00:15]} 36. Ke3 {[%emt 0:00:22]} Re5+ {[%emt 0:00:01]} 37. Kf4 {[%emt 0:00:07]} g5+ {[%emt 0:00:45]} 38. Kg3 {[%emt 0:00:07]} Re3+ {[%emt 0:01:02]} 39. Kf2 {[%emt 0:00:06]} 1-0